Workbook

Sheet BSC
A1: INDUSTRIA LICORERA DEL CAUCA
A2: BSC-CUADRO DE MANDO INTEGRAL
A3: PROCESOS

Sheet ADMINISTRATIVA
B1: INDUSTRIA LICORERA DEL CAUCA 2021
B2: BALANCE SCORECARD
B3: Código DOPL03 | D3: Versión 04 | J3: Fecha vigencia Julio 16 de 2018 | P3: Página 3 de 15
A5: GESTIÓN DE CALIDAD
A6: NOMBRE | B6: FORMULA | C6: META | D6: Ene | E6: % | F6: Feb | G6: % | H6: Mar | I6: % | J6: Abr | K6: % | L6: May | M6: % | N6: Jun | O6: % | P6: Jul | Q6: % | R6: Ago | S6: % | T6: Sep | U6: % | V6: Oct | W6: % | X6: Nov | Y6: % | Z6: Dic | AA6: %
A7: ALMACENAMIENTO CLIENTES | B7: uds Cliente Bodega | C7: <=33% | D7: 156.017 | E7: =D7/D8 -> 0.1733522222 | F7: 97.254 | G7: =F7/F8 -> 0.10806 | H7: 70.35 | I7: =H7/H8 -> 0.07816666667 | J7: 51.036 | K7: =J7/J8 -> 0.05670666667 | L7: 49.896 | M7: =L7/L8 -> 0.05544 | N7: 37.152 | O7: =N7/N8 -> 0.04128 | P7: 23.454 | Q7: =P7/P8 -> 0.02606 | R7: 9.522 | S7: =R7/R8 -> 0.01058 | T7: 22.452 | U7: =T7/T8 -> 0.02494666667 | V7: 5.7 | W7: =V7/V8 -> 0.006333333333 | X7: 11.604 | Y7: =X7/X8 -> 0.01289333333 | Z7: 18.594 | AA7: =Z7/Z8 -> 0.02066
B8: # uds Bodega | D8: 900 | F8: 900 | H8: 900 | J8: 900 | L8: 900 | N8: 900 | P8: 900 | R8: 900 | T8: 900 | V8: 900 | X8: 900 | Z8: 900
A9: SGSST | B9: Actividades del SGSST ejecutadas | C9: 1 | D9: 1 | E9: =D9/D10 -> 1 | F9: 1 | G9: =F9/F10 -> 1 | H9: 1 | I9: =H9/H10 -> 1 | J9: 5 | K9: =J9/J10 -> 1 | L9: 6 | M9: =L9/L10 -> 1 | N9: 8 | O9: =N9/N10 -> 1 | P9: 10 | Q9: =P9/P10 -> 1 | R9: 8 | S9: =R9/R10 -> 1 | T9: 9 | U9: =T9/T10 -> 0.9 | V9: 9 | W9: =V9/V10 -> 0.9 | X9: 10 | Y9: =X9/X10 -> 1 | Z9: 7 | AA9: =Z9/Z10 -> 0.875
B10: Actividades del SGSST programadas | D10: 1 | F10: 1 | H10: 1 | J10: 5 | L10: 6 | N10: 8 | P10: 10 | R10: 8 | T10: 10 | V10: 10 | X10: 10 | Z10: 8
A11: CAPACITACION | B11: Total eventos de capacitación y formación realizados | C11: 0.8 | D11: 5 | N11: =D11/D12 -> 0.1666666667 | P11: 0 | Z11: =P11/P12 -> 0
B12: Total eventos de capacitación y formación programados | D12: 30 | P12: 30
A13: MANTENIMIENTO PREVENTIVO INFRAESTRUCTURA | B13: Mantenimiento Preventivo Realizado | C13: 0.8 | D13: 17 | K13: =D13/D14 -> 1 | L13: 11 | S13: =L13/L14 -> 1 | T13: 1 | AA13: =T13/T14 -> 1
B14: Mantenimiento Preventivo Programado | D14: 17 | L14: 11 | T14: 1
A15: CUMPLIMEINTO MANTENIMIENTO CORRECTIVO INFRAESTRUCTURA | B15: Cantidades de solicitudes resueltas | C15: 0.8 | D15: 9 | K15: =D15/D16 -> 1 | L15: 1 | S15: =L15/L16 -> 1 | T15: 1 | AA15: =T15/T16 -> 1 | AB15: pendiente Verificacion en terreno de cum,plimiento de actividades por la Division de Planeacion
B16: Cantidades de solicitudes | D16: 9 | L16: 1 | T16: 1
A17: MANTENIMIENTO PREVENTIVO VEHICULAR | B17: Mantenimiento Preventivo Realizado | C17: 0.9 | D17: 3 | K17: =D17/D18 -> 1 | L17: 1 | S17: =L17/L18 -> 1 | T17: 1 | AA17: =T17/W18 -> 1
B18: Mantenimiento Preventivo Programado | D18: 3 | L18: 1 | W18: 1
A19: CUMPLIMEINTO MANTENIMIENTO CORRECTIVO VEHICULAR | B19: Mantenimiento Correctivo Realizado | C19: 0.9 | D19: 6 | K19: =D19/D20 -> 1 | L19: 1 | S19: =L19/L20 -> 1 | T19: 1 | AA19: =T19/T20 -> 1
B20: Mantenimiento Correctivo Programado | D20: 6 | L20: 1 | T20: 1
L21: 1
A23: RESPONSABLE | B23: Jefe Division Administrativa
A26: N

Sheet MANTENIMIENTO
B1: INDUSTRIA LICORERA DEL CAUCA 2021
B2: BALANCE SCORECARD
B3: Código DOPL03 | D3: Versión 04 | J3: Fecha vigencia Julio 16 de 2018 | Q3: Página 4 de 13
A5: MANTENIMIENTO
A6: NOMBRE | B6: FORMULA | C6: META | D6: Ene | E6: % | F6: Feb | G6: % | H6: Mar | I6: % | J6: Abr | K6: % | L6: May | M6: % | N6: Jun | O6: % | P6: jul | Q6: % | R6: Ago | S6: % | T6: Sep | U6: % | V6: Oct | W6: % | X6: Nov | Y6: % | Z6: Dic | AA6: %
A7: % DISPONIBILIDAD | B7: Tiempo Total de Operación | C7: 69% o menor:Malo 70% - 79% : Regular 80% - 89% : Bueno 90% - 94% : Optimo 95% - 100% : Fuera de rango posible | D7: 760 | E7: =D7/D8 -> 0.9156626506 | F7: 892 | G7: =F7/F8 -> 0.8677042802 | H7: 4260 | I7: =H7/H8 -> 0.8871303623 | J7: 13550 | K7: =J7/J8 -> 0.830371369 | L7: 6390 | M7: =L7/L8 -> 0.8962131837 | N7: 19705 | O7: =N7/N8 -> 0.8392963626 | P7: 17840 | Q7: =P7/P8 -> 0.8337227778 | R7: 20650 | S7: =R7/R8 -> 0.8046917621 | T7: 19720 | U7: =T7/T8 -> 0.8714481418 | V7: 14875 | W7: =V7/V8 -> 0.7915602384 | X7: 15470 | Y7: =X7/X8 -> 0.8225223309 | Z7: 9190 | AA7: =Z7/Z8 -> 0.9031941032
B8: Tiempo de Operación + Tiempo de paradas | D8: 830 | F8: 1028 | H8: 4802 | J8: =J7+2768 -> 16318 | L8: =6390+740 -> 7130 | N8: =19705+3773 -> 23478 | P8: =17840+3558 -> 21398 | R8: =20650+5012 -> 25662 | T8: =19720+2909 -> 22629 | V8: =V7+3917 -> 18792 | X8: =15470+3338 -> 18808 | Z8: =Z7+985 -> 10175
A10: NOMBRE | B10: FORMULA | C10: META | D10: Año | E10: %
A11: COSTO TOTAL DE MANTENIMIENTO POR FACTURACIÓN | B11: Costo Total de Mto por Facturación | C11: <= 2% de la facturacion | D11: =2901789+338680958+15000000 -> 356582747 | E11: =D11/D12 -> 0.007858125078 | F11: Costo de los proyectos ejecutados en el año necesarios para el mantenimiento de la infraestructura de producción y compras de nuevos equipos.
B12: Facturación Total en el periodo | D12: 45377586060 | F12: Facturación del año 2021 sin incluir impuestos
A16: RESPONSABLE | B16: Profesional Universitario de Mantenimiento

Sheet GESTION DE CALIDAD
B1: INDUSTRIA LICORERA DEL CAUCA 2021
B2: BALANCE SCORECARD
B3: Código DOPL03 | D3: Versión 04 | J3: Fecha vigencia Julio 16 de 2018 | P3: Página 3 de 15
A5: GESTIÓN DE CALIDAD
A6: NOMBRE | B6: FORMULA | C6: META | D6: Ene | E6: % | F6: Feb | G6: % | H6: Mar | I6: % | J6: Abr | K6: % | L6: May | M6: % | N6: Jun | O6: % | P6: Jul | Q6: % | R6: Ago | S6: % | T6: Sep | U6: % | V6: Oct | W6: % | X6: Nov | Y6: % | Z6: Dic | AA6: %
A7: ESTADO DE ACCIONES CORRECTIVAS | B7: No conformidades de auditoria interna cerradas / Total no conformidades de auditoria interna | C7: >=70% | D7: 0 | E7: =D7/D8 -> 0 | F7: 0 | G7: =F7/F8 -> 0 | H7: 0 | I7: =H7/H8 -> 0 | J7: 0 | K7: =J7/J8 -> 0 | L7: 0 | M7: =L7/L8 -> 0 | N7: 0 | O7: =N7/N8 -> 0 | P7: 0 | Q7: =P7/P8 -> 0 | R7: 0 | S7: =R7/R8 -> 0 | T7: 0 | U7: =T7/T8 -> 0 | V7: 0 | W7: =V7/V8 -> 0 | X7: 0 | Y7: =X7/X8 -> 0 | Z7: 22 | AA7: =Z7/Z8 -> 0.4583333333
D8: 1 | F8: 1 | H8: 1 | J8: 1 | L8: 1 | N8: 1 | P8: 7 | R8: 5 | T8: 11 | V8: 17 | X8: 8 | Z8: 48
A9: AUDITORIA INTERNA | B9: Auditoria interna realizadas/Total auditorías internas programadas | D9: 0 | E9: =D9/D10 -> 0 | F9: 0 | G9: % | H9: 0 | I9: =H9/H10 -> 0 | J9: 0 | K9: =J9/J10 -> 0 | L9: 0 | M9: =L9/L10 -> 0 | N9: 0 | O9: =N9/N10 -> 0 | P9: 4 | Q9: =P9/P10 -> 0.3076923077 | R9: 2 | S9: =R9/R10 -> 0.1538461538 | T9: 1 | U9: 0.09 | V9: 3 | W9: =V9/V10 -> 0.2307692308 | X9: 3 | Y9: =X9/X10 -> 0.2307692308 | Z9: 0 | AA9: =Z9/Z10 -> 0
D10: 13 | F10: 13 | H10: 13 | J10: 13 | L10: 13 | N10: 13 | P10: 13 | R10: 13 | T10: 13 | V10: 13 | X10: 13 | Z10: 13
A12: RESPONSABLE | B12: Representante de la Dirección Coordinador de Calidad

Sheet COMUNICACION
B1: INDUSTRIA LICORERA DEL CAUCA 2021
B2: BALANCE SCORECARD
B3: Código DOPL03 | D3: Versión 04 | J3: Fecha vigencia Julio 16 de 2018 | P3: Página 3 de 15
A5: GESTIÓN DE CALIDAD
A6: NOMBRE | B6: FORMULA | C6: META | D6: Ene | E6: % | F6: Feb | G6: % | H6: Mar | I6: % | J6: Abr | K6: % | L6: May | M6: % | N6: Jun | O6: % | P6: Jul | Q6: % | R6: Ago | S6: % | T6: Sep | U6: % | V6: Oct | W6: % | X6: Nov | Y6: % | Z6: Dic | AA6: %
A7: PLAN DE MEDIOS | B7: No. de medios contratados | C7: 0.8 | D7: 1 | E7: =D7/D8 -> 1 | F7: 1 | G7: =F7/F8 -> 1 | H7: 1 | I7: =H7/H8 -> 1 | J7: 1 | K7: =J7/J8 -> 1 | L7: 1 | M7: =L7/L8 -> 1 | N7: 1 | O7: =N7/N8 -> 1 | P7: 1 | Q7: =P7/P8 -> 1 | R7: 1 | S7: =R7/R8 -> 1 | T7: 1 | U7: =T7/T8 -> 1 | V7: 1 | W7: =V7/V8 -> 1 | X7: 1 | Y7: =X7/X8 -> 1 | Z7: 1 | AA7: =Z7/Z8 -> 1
B8: No. total de medios potenciales | D8: 1 | F8: 1 | H8: 1 | J8: 1 | L8: 1 | N8: 1 | P8: 1 | R8: 1 | T8: 1 | V8: 1 | X8: 1 | Z8: 1
A9: CAMPAÑAS | B9: No. de Campañas Realizadas | D9: 1 | E9: =D9/D10 -> 1 | F9: 1 | G9: =F9/F10 -> 1 | H9: 1 | I9: =H9/H10 -> 1 | J9: 2 | K9: =J9/J10 -> 1 | L9: 2 | M9: =L9/L10 -> 1 | N9: 3 | O9: =N9/N10 -> 1 | P9: 1 | Q9: =P9/P10 -> 1 | R9: 1 | S9: =R9/R10 -> 1 | T9: 1 | U9: =T9/T10 -> 1 | V9: 1 | W9: =V9/V10 -> 1 | X9: 1 | Y9: =X9/X10 -> 1 | Z9: 1 | AA9: =Z9/Z10 -> 1
B10: No. total de Campañas planeadas | D10: 1 | F10: 1 | H10: 1 | J10: 2 | L10: 2 | N10: 3 | P10: 1 | R10: 1 | T10: 1 | V10: 1 | X10: 1 | Z10: 1
A12: RESPONSABLE | B12: Profesional en Comunicaciones
V13: x

Sheet JURIDICA
B1: INDUSTRIA LICORERA DEL CAUCA 2021
B2: BALANCE SCORECARD
B3: Código DOPL03 | E3: Versión 04 | J3: Fecha vigencia Julio 16 de 2018 | P3: Página 11 de 15
A5: JURIDICA
A6: NOMBRE | B6: FORMULA | C6: META | D6: Ene | E6: % | F6: Feb | G6: % | H6: Mar | I6: % | J6: Abr | K6: % | L6: May | M6: % | N6: Jun | O6: % | P6: Jul | Q6: % | R6: Ago | S6: % | T6: Sep | U6: % | V6: Oct | W6: % | X6: Nov | Y6: % | Z6: Dic | AA6: %
A7: CONTRATOS OPORTUNOS | B7: Número de contratos realizados | C7: 1 | D7: 6 | E7: =D7/D8 -> 1 | F7: 15 | G7: =F7/F8 -> 1 | H7: 27 | I7: =H7/H8 -> 1 | J7: 11 | K7: =J7/J8 -> 1 | L7: 12 | M7: =L7/L8 -> 1 | N7: 12 | O7: =N7/N8 -> 1 | P7: 16 | Q7: =P7/P8 -> 1 | R7: 11 | S7: =R7/R8 -> 1 | T7: 17 | U7: =T7/T8 -> 1 | V7: 24 | W7: =V7/V8 -> 1 | X7: 32 | Y7: =X7/X8 -> 1 | Z7: 35 | AA7: =Z7/Z8 -> 1
B8: Números de contratos solicitados | D8: 6 | F8: 15 | H8: 27 | J8: 11 | L8: 12 | N8: 12 | P8: 16 | R8: 11 | T8: 17 | V8: 24 | X8: 32 | Z8: 35
A11: RESPONSABLE | B11: Jefe División Juridica

Sheet FINANCIERA
B1: INDUSTRIA LICORERA DEL CAUCA 2021
B2: BALANCE SCORECARD
B3: Código DOPL03 | D3: Versión 04 | I3: Fecha vigencia Julio 16 de 2018 | O3: Página 13 de 13
A5: ADMINISTRATIVA Y FINANCIERA
A6: NOMBRE | B6: FORMULA | C6: META | D6: Ene | E6: % | F6: Feb | G6: % | H6: Mar | I6: % | J6: Abr | K6: % | L6: May | M6: % | N6: Jun | O6: % | P6: Jul | Q6: % | R6: Agos | S6: % | T6: Sep | U6: % | V6: Oct | W6: % | X6: Nov | Y6: % | Z6: Dic | AA6: %
A7: MARGEN OPERACIONAL | B7: Utilidad Operacional | C7: >=17% | D7: -1272232757 | E7: =D7/D8 -> -54.00185987 | F7: -1943167028 | G7: =F7/F8 -> -2.381130009 | H7: -1149448219 | I7: =H7/H8 -> -0.3574888363 | J7: 106363070 | K7: =J7/J8 -> 0.01566275451 | L7: 421115546 | M7: =L7/L8 -> 0.0463454445 | N7: 2415918865 | O7: =N7/N8 -> 0.1635987193 | P7: 3528843859 | Q7: =P7/P8 -> 0.194662074 | R7: 5717075240 | S7: =R7/R8 -> 0.2453550023 | T7: 8604412212 | U7: =T7/T8 -> 0.3039935671 | V7: 9556597236 | W7: =V7/X8 -> 0.2497805153 | X7: 11375624193 | Y7: =X7/X8 -> 0.2973243722 | Z7: 14756480953 | AA7: =+Z7/Z8 -> 0.3226927617 | AC7: La Division de Planeacion recomienda revisar el indicador para poder realizar un analisis mas exacto del desempeño realizado por la Division Financiera
B8: Ingresos Netos | D8: 23559054.45 | F8: 816069270 | H8: 3215340180 | J8: 6790827879 | L8: 9086449608 | N8: 1.476734583e+10 | P8: 1.812805025e+10 | R8: 2.330123775e+10 | T8: 2.830458649e+10 | V8: 33156466933 | X8: 38259978859 | Z8: 45729197259
A11: RESPONSABLE | B11: Jefe División Financiera.

Sheet COMERCIALIZACIÓN
B1: INDUSTRIA LICORERA DEL CAUCA 2021
B2: BALANCE SCORECARD
B3: Código DOPL03 | E3: Versión 04 | K3: Fecha vigencia Julio 16 de 2018 | R3: Página 9 de 13
A5: COMERCIALIZACIÓN
A6: NOMBRE | B6: FORMULA | C6: META | D6: Ene | E6: % | F6: Feb | G6: % | H6: Mar | I6: % | J6: Abr | K6: % | L6: May | M6: % | N6: Jun | O6: % | P6: Jul | Q6: % | R6: Ago | S6: % | T6: Sep | U6: % | V6: Oct | W6: % | X6: Nov | Y6: % | Z6: Dic | AA6: % | AB6: Año
A7: VENTAS | B7: Número de unidades vendidas | C7: 1 | D7: 0 | E7: =D7/D8 -> 0 | F7: 58079 | G7: =F7/F8 -> 0.01613305556 | H7: 180734 | I7: =H7/H8 -> 0.05020388889 | J7: 260189 | K7: =J7/J8 -> 0.07227472222 | L7: 169521 | M7: =L7/L8 -> 0.04708916667 | N7: 420556 | O7: =N7/N8 -> 0.1168211111 | P7: 241035 | Q7: =P7/P8 -> 0.06695416667 | R7: 388526 | S7: =R7/R8 -> 0.1079238889 | T7: 365610 | U7: =T7/T8 -> 0.09374615385 | V7: 361362 | W7: =V7/V8 -> 0.09265692308 | X7: 362130 | Y7: =X7/X8 -> 0.09285384615 | Z7: 546038 | AA7: =Z7/Z8 -> 0.1400097436 | AB7: =AC7/3900000 -> 0.8599435897 | AC7: =Z7+X7+V7+T7+R7+P7+N7+L7+J7+H7+F7+D7/39000000 -> 3353780
B8: total meta de ventas | D8: 3600000 | F8: 3600000 | H8: 3600000 | J8: 3600000 | L8: 3600000 | N8: 3600000 | P8: 3600000 | R8: 3600000 | T8: 3900000 | V8: 3900000 | X8: 3900000 | Z8: 3900000
A9: NOMBRE | B9: FORMULA | C9: META | D9: Ene | E9: % | F9: Feb | G9: % | H9: Mar | I9: % | J9: Abr | K9: % | L9: May | M9: % | N9: Jun | O9: % | P9: Jul | Q9: % | R9: Ago | S9: % | T9: Sep | U9: % | V9: Oct | W9: % | X9: Nov | Y9: % | Z9: Dic | AA9: % | AB9: Año
A10: RECLAMOS | B10: No. Clientes satisfechos de R | C10: 0.8 | D10: 6 | E10: =D10/D11 -> 1 | F10: 5 | G10: =F10/F11 -> 1 | H10: 2 | I10: =H10/H11 -> 0.6666666667 | J10: 4 | K10: =J10/J11 -> 1 | L10: 1 | M10: =L10/L11 -> 1 | N10: 5 | O10: =N10/N11 -> 1 | P10: 4 | Q10: =P10/P11 -> 1 | R10: 6 | S10: =R10/R11 -> 1 | T10: 3 | U10: =T10/T11 -> 1 | V10: 5 | W10: =V10/V11 -> 1 | X10: 1 | Y10: =X10/X11 -> 1 | Z10: 1 | AA10: =Z10/Z11 -> 1 | AB10: =AVERAGE(E10,G10,I10,K10,M10,O10,Q10,S10,U10,W10,Y10,AA10) -> 0.9722222222
B11: No. R presentados. | D11: 6 | F11: 5 | H11: 3 | J11: 4 | L11: 1 | N11: 5 | P11: 4 | R11: 6 | T11: 3 | V11: 5 | X11: 1 | Z11: 1
A12: NOMBRE | B12: FORMULA | C12: META | D12: Ene | E12: % | F12: Feb | G12: % | H12: Mar | I12: % | J12: Abr | K12: % | L12: May | M12: % | N12: Jun | O12: % | P12: Jul | Q12: % | R12: Ago | S12: % | T12: Sep | U12: % | V12: Oct | W12: % | X12: Nov | Y12: % | Z12: Dic | AA12: % | AB12: Año
A13: SATISFACCION | B13: No. Consumidores satisfechos | C13: 0.8 | D13: 0 | E13: =D13/D14 -> 0 | F13: 0 | G13: =F13/F14 -> 0 | H13: 0 | I13: =H13/H14 -> 0 | J13: 0 | K13: =J13/J14 -> 0 | L13: 0 | M13: =L13/L14 -> 0 | N13: 339 | O13: =N13/N14 -> 0.952247191 | P13: 0 | Q13: =P13/P14 -> 0 | R13: 0 | S13: =R13/R14 -> 0 | T13: 0 | U13: =T13/T14 -> 0 | V13: 0 | W13: =V13/V14 -> 0 | X13: 0 | Y13: =X13/X14 -> 0 | Z13: 617 | AA13: =Z13/Z14 -> 0.9376899696 | AB13: =AVERAGE(O13,AA13) -> 0.9449685803
B14: total consumidores encuestados | D14: 1 | F14: 1 | H14: 1 | J14: 1 | L14: 1 | N14: 356 | P14: 1 | R14: 1 | T14: 1 | V14: 1 | X14: 1 | Z14: 658
A17: RESPONSABLE | B17: Jefe División Comercialización

Sheet PLANEACION
B1: INDUSTRIA LICORERA DEL CAUCA 2021
B2: BALANCE SCORECARD
B3: Código DOPL03 | C3: Versión 04 | D3: Fecha vigencia Julio 16 de 2018 | F3: Página 12 de 13
A5: PLANEACIÓN
A6: NOMBRE | B6: FORMULA | C6: META | D6: 1S | E6: % | F6: 2S | G6: %
A7: PROYECTOS | B7: Número de Proyectos Ejecutados | C7: >=90% | D7: 2 | E7: =D7/D8 -> 1 | F7: 2 | G7: =F7/F8 -> 1
B8: Número de Proyectos Elaborados | D8: 2 | F8: 2
A9: FORMULACION PLAN ESTRATEGICO 2019-2022 | B9: Avances | C9: 1 | D9: 50 | E9: =D9/D10 -> 1 | F9: 50 | G9: =F9/F10 -> 1
D10: 50 | F10: 50
A12: RESPONSABLE | B12: Jefe División planeación.

Sheet GESTIÓN TECNOLOGICA
B1: INDUSTRIA LICORERA DEL CAUCA 2021
B2: BALANCE SCORECARD
B3: Código DOPL03 | E3: Versión 04 | K3: Fecha vigencia Julio 16 de 2018 | R3: Página 8 de 13
A5: GESTIÓN TECNOLOGICA
A6: NOMBRE | B6: FORMULA | C6: META | D6: Ene | E6: % | F6: Feb | G6: % | H6: Mar | I6: % | J6: Abr | K6: % | L6: May | M6: % | N6: Jun | O6: % | P6: Jul | Q6: % | R6: Ago | S6: % | T6: Sep | U6: % | V6: Oct | W6: % | X6: Nov | Y6: % | Z6: Dic | AA6: %
A7: SOPORTE | B7: # de solicitudes soporte | C7: 1 | D7: 57 | E7: =D7/D8 -> 1 | F7: 60 | G7: =F7/F8 -> 1 | H7: 63 | I7: =H7/H8 -> 1 | J7: 60 | K7: =J7/J8 -> 1 | L7: 60 | M7: =L7/L8 -> 1 | N7: 60 | O7: =N7/N8 -> 1 | P7: 55 | Q7: =P7/P8 -> 1 | R7: 63 | S7: =R7/R8 -> 1 | T7: 66 | U7: =T7/T8 -> 1 | V7: 60 | W7: =V7/V8 -> 1 | X7: 60 | Y7: =X7/X8 -> 1 | Z7: 69 | AA7: =Z7/Z8 -> 1
B8: # Total de solicitudes recibidas | D8: 57 | F8: 60 | H8: 63 | J8: 60 | L8: 60 | N8: 60 | P8: 55 | R8: 63 | T8: 66 | V8: 60 | X8: 60 | Z8: 69
A9: MANTENIMIENTO | B9: # Mantenimiento Preventivos ejecutados | C9: 1 | L9: 36 | M9: =L9/L10 -> 1 | N9: 33 | O9: =N9/N10 -> 0.8461538462
B10: # Mantenimientos Programados | L10: 36 | N10: 39
A12: RESPONSABLE | B12: Técnico Programador de Sistemas

Sheet CONTROL DE CALIDAD
B1: INDUSTRIA LICORERA DEL CAUCA 2021
B2: BALANCE SCORECARD
B3: Código DOPL03 | D3: Versión 04 | J3: Fecha vigencia Julio 16 de 2018 | P3: Página 15 de 13
A5: CONTROL DE CALIDAD
A6: NOMBRE | B6: FORMULA | C6: META | E6: % | F6: Feb | G6: % | H6: Mar | I6: % | J6: Abr | K6: % | L6: May | M6: % | N6: Jun | O6: % | P6: Jul | Q6: % | R6: Ago | S6: % | T6: Sep | U6: % | V6: Oct | W6: % | X6: Nov | Y6: % | Z6: Dic | AA6: %
A7: RECLAMOS ATENDIDOS | B7: Concepto tecnico | C7: 1 | D7: 3 | E7: =D7/D8 -> 1 | F7: 5 | G7: =F7/F8 -> 1 | H7: 2 | I7: =H7/H8 -> 1 | J7: 3 | K7: =J7/J8 -> 1 | L7: 0 | M7: =L7/L8 -> 0 | N7: 5 | O7: =N7/N8 -> 1 | P7: 3 | Q7: =P7/P8 -> 1 | R7: 6 | S7: =R7/R8 -> 1 | T7: 3 | U7: =T7/T8 -> 1 | V7: 0 | W7: =V7/V8 -> 0 | X7: 0 | Y7: =X7/X8 -> 0 | Z7: 0 | AA7: =Z7/Z8 -> 0
B8: Total reclamos recibidos en el mes | D8: 3 | F8: 5 | H8: 2 | J8: 3 | L8: 1 | N8: 5 | P8: 3 | R8: 6 | T8: 3 | V8: 1 | X8: 1 | Z8: 1
A9: NOMBRE | B9: FORMULA | C9: META | D9: Ene | E9: % | F9: Feb | G9: % | H9: Mar | I9: % | J9: Abr | K9: % | L9: May | M9: % | N9: Jun | O9: % | P9: Jul | Q9: % | R9: Ago | S9: % | T9: Sep | U9: % | V9: Oct | W9: % | X9: Nov | Y9: % | Z9: Dic | AA9: %
A10: PRODUCTOS NO CONFORMES | B10: Numero De Productos no conformes | C10: <=3% | D10: 173 | E10: =D10/D11 -> 0.02394795127 | F10: 122 | G10: =F10/F11 -> 0.001031939369 | H10: 1112 | I10: =H10/H11 -> 0.003558901093 | J10: 1030 | K10: =J10/J11 -> 0.00250454709 | L10: 329 | M10: =L10/L11 -> 0.002207372221 | N10: 2242 | O10: =N10/N11 -> 0.00357562071 | P10: 1389 | Q10: =P10/P11 -> 0.003343926044 | R10: 3481 | S10: =R10/R11 -> 0.006613017823 | T10: 2555 | U10: =T10/T11 -> 0.01510047281 | V10: 0 | W10: =V10/V11 -> 0 | X10: 0 | Y10: =X10/X11 -> 0 | Z10: 0 | AA10: =Z10/Z11 -> 0
B11: Lotes de PT | D11: 7224 | F11: 118224 | H11: 312456 | J11: 411252 | L11: 149046 | N11: 627024 | P11: 415380 | R11: 526386 | T11: 169200 | V11: 1 | X11: 1 | Z11: 1
A14: RESPONSABLE | B14: Profesional Universitario Control Calidad
B22: Incremento en el porcentaje debido a el mantenimiento, ajustes y ensayo de los equipos de la linea
B23: no se recepciono reclamos
B26: No se recepcionaron reclamos en ese periodo de tiempo

Sheet PRODUCCION
B1: INDUSTRIA LICORERA DEL CAUCA 2021
B2: BALANCE SCORECARD
B3: Código DOPL03 | D3: Versión 04 | I3: Fecha vigencia Julio 16 de 2018 | N3: Página 2 de 13
A6: PRODUCCIÓN
A7: NOMBRE | B7: FORMULA | C7: META | D7: Ene | E7: % | F7: Feb | G7: % | H7: Mar | I7: % | J7: Abr | K7: % | L7: May | M7: % | N7: 5 | O7: % | P7: Jul | Q7: % | R7: Ago | S7: % | T7: Sep | U7: % | V7: Oct | W7: % | X7: Nov | Y7: % | Z7: Dic | AA7: % | AB7: Año
A8: PRODUCION | B8: Total Unidades producidas | C8: 1 | D8: =(200+201)*12 -> 4812 | E8: =D8/D$9 -> 1 | F8: 71112 | G8: =F8/F$9 -> 0.1616211204 | H8: 285864 | I8: =H8/H$9 -> 0.6672112705 | J8: =(11099+12073)*12 -> 278064 | K8: =J8/J$9 -> 0.6097894737 | L8: =((5550+561)*12)+((1018+501)*14) -> 94598 | M8: =L8/L$9 -> 0.2627722222 | N8: 5 | O8: =N8/N$9 -> 1.461988304e-05 | P8: 246900 | Q8: =P8/P$9 -> 0.7348214286 | R8: =((1512+10246+14369)*12)+((9682+2279)*14) -> 480978 | S8: =R8/R$9 -> 1.235481783 | T8: =(21379+15543)*12 -> 443064 | U8: =T8/T$9 -> 1.943263158 | V8: =(11818+13293+378)*12 -> 305868 | W8: =V8/V$9 -> 1.299796022 | X8: =(17752+315+10607)*12 -> 344088 | Y8: =X9/X$9 -> 1 | Z8: =(7021*12)+(8872+2064*14) -> 122020 | AA8: =Z8/Z$9 -> 1 | AB8: 0.8815 | AC8: =(D8+F8+H8+J8+L8+N8+P8+R8+T8+V8+X8+Z8) -> 2677373
B9: Total de Unidades Programadas | D9: 4812 | F9: 439992 | H9: 428446 | J9: =38000*12 -> 456000 | L9: =30000*12 -> 360000 | N9: =28500*12 -> 342000 | P9: 336000 | R9: =32442*12 -> 389304 | T9: =19000*12 -> 228000 | V9: =19610*12 -> 235320 | X9: =11665*12 -> 139980 | Z9: 122020 | AC9: =F90+H9+J9+L9+N9+P9+R9+T9+V9+X9+Z9 -> 3037070 | AD9: =(AC8*100)/AC9 -> 88.15644684 | AE9: las unidades programadas del mes de enero y diciembre deben corresponder a las unidades producidas
L10: |
A11: REDUCIR EL IMPACTO AMBIENTAL EN EL MANEJO DE LOS RESIDUOS DE LA PRODUCCIÓN | B11: Total de Bajas (Etiqueta, Tapa, Cartón) Año Actual | C11: <1,5% | D11: 38 | E11: =D11/D12 -> 0.007896924356 | F11: =75+26+366+363+50+19+11+15+50+28 -> 1003 | G11: =F11/F12 -> 0.002279586902 | H11: =102+64+32+338+884+198+709+22+46+79+19+11+67+28 -> 2599 | I11: =H11/H12 -> 0.006066108681 | J11: 2522 | K11: =J11/J12 -> 0.005530701754 | L11: =193+7+13+457+20+248+155+53+10+11+50+29 -> 1246 | M11: =L11/L12 -> 0.003461111111 | N11: =546+584+10+717+10+10+10+134+163+145+75+147 -> 2551 | O11: =N11/N12 -> 0.005385264936 | P11: =174+56+616+277+64+238+64+31+222+49 -> 1791 | Q11: =P11/P12 -> 0.005330357143 | R11: =91+118+87+3+30+472+240+770+111+10+144+82+93+43+109+56+102 -> 2561 | S11: =R11/R12 -> 0.006578406592 | T11: =182+982+357+138+56+5+288+26 -> 2034 | U11: =T11/T12 -> 0.008921052632 | V11: =(134+980+206+107+49+6+2+92+55) -> 1631 | W11: =V11/V12 -> 0.006930987591 | X11: 1563 | Y11: =(X11*100)/X12 -> 0.4542442631 | Z11: =45+208+151+179+519+143+14+27+60+28+109+159 -> 1642 | AA11: =Z11/Z12 -> 0.01345681036
B12: Total Unidades Producidas | D12: 4812 | F12: 439992 | H12: 428446 | J12: 456000 | L12: =30000*12 -> 360000 | N12: 473700 | P12: 336000 | R12: 389304 | T12: 228000 | V12: 235320 | X12: 344088 | Z12: 122020
A15: RESPONSABLE | B15: Jefe División Producción

Sheet CONTROL INTERNO
B1: INDUSTRIA LICORERA DEL CAUCA 2020
B2: BALANCE SCORECARD
B3: Código DOPL03 | D3: Versión 04 | J3: Fecha vigencia Julio 16 de 2018 | Q3: Página 5 de 15
A5: CONTROL INTERNO
A6: NOMBRE | B6: FORMULA | C6: META | D6: Ene | E6: % | F6: Feb | G6: % | H6: Mar | I6: % | J6: Abr | K6: % | L6: May | M6: % | N6: Jun | O6: % | P6: Jul | Q6: % | R6: Ago | S6: % | T6: Sep | U6: % | V6: Oct | W6: % | X6: Nov | Y6: % | Z6: Dic | AA6: %
A7: AUDITORIA INTERNA | B7: Numero de auditorías de Control Interno realizadas en el Programa Anual de Auditorias | C7: >=100% | D7: 0 | E7: =D7/$D$8 -> 0 | F7: 0 | G7: =F7/F8 -> 0 | H7: 0 | I7: =H7/$D$8 -> 0 | J7: 0 | K7: =J7/$D$8 -> 0 | L7: 0 | M7: =L7/$D$8 -> 0 | N7: 0 | O7: =N7/$D$8 -> 0 | P7: 4 | Q7: =P7/$D$8 -> 0.3076923077 | R7: 2 | S7: =R7/$D$8 -> 0.1538461538 | T7: 1 | U7: =T7/$D$8 -> 0.07692307692 | V7: 3 | W7: =V7/$D$8 -> 0.2307692308 | X7: 3 | Y7: =X7/$D$8 -> 0.2307692308 | AA7: 1
B8: total de auditorías de Control Interno establecidas en el Programadas Anual de Auditorias *100 | D8: 13 | F8: 13 | H8: 13 | J8: 13 | L8: 13 | N8: 13 | P8: 13 | R8: 13 | T8: 13
A10: NOMBRE | B10: FORMULA | C10: META | D10: 1B | E10: % | F10: 2B | G10: % | H10: 3B | I10: % | J10: 4B | K10: % | L10: 5B | M10: % | N10: 6B | O10: % | P10: 7B | Q10: % | R10: 8B | S10: % | T10: 9B | U10: % | V10: 10B | W10: % | X10: 11B | Y10: % | Z10: 12B | AA10: %
A11: ENTES EXTERNOS | B11: Numero de Informes de Ley presentados | C11: 1 | D11: 4 | E11: =D11/D12 -> 1 | F11: 2 | G11: =F11/F12 -> 1 | H11: 2 | I11: =H11/H12 -> 1 | J11: 1 | K11: =J11/J12 -> 1 | L11: 1 | M11: =L11/L12 -> 1 | N11: 1 | O11: =N11/N12 -> 1 | P11: 1 | Q11: =P11/P12 -> 1 | R11: 2 | S11: =R11/R12 -> 1 | T11: 1 | U11: =T11/T12 -> 1 | V11: 0 | W11: =V11/V12 ->  | X11: 1 | Y11: 1 | Z11: 0 | AA11: 1
B12: Total de Informes de Ley a presentar | D12: 4 | F12: 2 | H12: 2 | J12: 1 | L12: 1 | N12: 1 | P12: 1 | R12: 2 | T12: 1 | V12: 0 | X12: 1 | Z12: 0
A14: NOMBRE | B14: FORMULA | C14: META | D14: 1B | E14: % | F14: 2B | G14: % | H14: 3B | I14: % | J14: 4B | K14: % | L14: 5B | M14: % | N14: 6B | O14: % | P14: 7B | Q14: % | R14: 8B | S14: % | T14: 9B | U14: % | V14: 10B | W14: % | X14: 11B | Y14: % | Z14: 12B | AA14: %
A15: SIA | B15: Nº de requerimientos publicados | C15: 1 | D15: 3 | E15: =D15/D16 -> 1 | F15: 1 | G15: =F15/F16 -> 1 | H15: 1 | I15: =H15/H16 -> 1 | J15: 1 | K15: =J15/J16 -> 1 | L15: 1 | M15: =L15/L16 -> 1 | N15: 2 | O15: 1 | P15: 1 | Q15: 1 | R15: 2 | S15: 1 | T15: 0 | U15: 1 | V15: 2 | W15: =V15/V16 -> 1 | X15: 0 | Y15: =X15/X16 ->  | Z15: 0 | AA15: 1
B16: Total de requerimientos en SIA Contralorías | D16: 3 | F16: 1 | H16: 1 | J16: 1 | L16: 1 | N16: 2 | P16: 1 | R16: 2 | T16: 0 | V16: 2 | X16: 0 | Z16: 0
A18: NOMBRE | B18: FORMULA | C18: META | D18: 1S | E18: % | F18: 2S | G18: %
A19: PLANES DE MEJORAMIENTO | B19: Nº de Instrumentos adoptados | C19: 1 | D19: 2 | E19: =D19/D20 -> 1 | F19: 2 | G19: =F19/F20 -> 1
B20: Total de Instrumentos del Decreto 648/17 Art. 2.2.21.4.8 | D20: 2 | F20: 2
A22: RESPONSABLE | B22: Jefe Oficina de Control Interno

Sheet BSC-CUADRO
B1: INDUSTRIA LICORERA DEL CAUCA 2021
B2: BALANCE SCORECARD
B3: Código DOPL03 | D3: Versión 04 | H3: Fecha vigencia Julio 16 de 2018 | M3: Página 1 de 13
A6: MENSUAL | AB6: ANUAL
A7: PROCESOS | B7: INDICADOR | C7: ENE | D7: META | E7: FEB. | F7: META | G7: MAR. | H7: META | I7: ABR. | J7: META | K7: MAY. | L7: META | M7: JUN. | N7: META | O7: JUL. | P7: META | Q7: AGO. | R7: META | S7: SEP. | T7: META | U7: OCT. | V7: META | W7: NOV. | X7: META | Y7: DIC. | Z7: META | AB7: AÑO | AC7: META
A8: PRODUCCION | B8: PLAN DE PRODUCCIÓN | C8: =PRODUCCION!E8 -> 1 | D8: =IF(C8>=80%,1,0) -> 1 | E8: =PRODUCCION!G8 -> 0.1616211204 | F8: =IF(E8>=80%,1,0) -> 0 | G8: =PRODUCCION!I8 -> 0.6672112705 | H8: =IF(G8>=80%,1,0) -> 0 | I8: =PRODUCCION!K8 -> 0.6097894737 | J8: =IF(I8>=80%,1,0) -> 0 | K8: =PRODUCCION!M8 -> 0.2627722222 | L8: =IF(K8>=80%,1,0) -> 0 | M8: =PRODUCCION!O8 -> 1.461988304e-05 | N8: =IF(M8>=80%,1,0) -> 0 | O8: =PRODUCCION!Q8 -> 0.7348214286 | P8: =IF(O8>=80%,1,0) -> 0 | Q8: =PRODUCCION!S8 -> 1.235481783 | R8: =IF(Q8>=80%,1,0) -> 1 | S8: =PRODUCCION!U8 -> 1.943263158 | T8: =IF(S8>=80%,1,0) -> 1 | U8: =PRODUCCION!W8 -> 1.299796022 | V8: =IF(U8>=80%,1,0) -> 1 | W8: =PRODUCCION!Y8 -> 1 | X8: =IF(W8>=80%,1,0) -> 1 | Y8: =PRODUCCION!AA8 -> 1 | Z8: =IF(Y8>=80%,1,0) -> 1 | AB8: =PRODUCCION!AB8 -> 0.8815 | AC8: =IF(AB8>=70%,1,0) -> 1
B9: REDUCIR EL IMPACTO AMBIENTAL EN EL MANEJO DE LOS RESIDUOS DE LA PRODUCCIÓN | C9: =PRODUCCION!E11 -> 0.007896924356 | D9: =IF(C9>=1.5%,1,0) -> 0 | E9: =PRODUCCION!G11 -> 0.002279586902 | F9: =IF(E9>=1.5%,1,0) -> 0 | G9: =PRODUCCION!I11 -> 0.006066108681 | H9: =IF(G9>=1.5%,1,0) -> 0 | I9: =PRODUCCION!K11 -> 0.005530701754 | J9: =IF(I9>=1.5%,1,0) -> 0 | K9: =PRODUCCION!M11 -> 0.003461111111 | L9: =IF(K9>=1.5%,1,0) -> 0 | M9: =PRODUCCION!O11 -> 0.005385264936 | N9: =IF(M9>=1.5%,1,0) -> 0 | O9: =PRODUCCION!Q11 -> 0.005330357143 | P9: =IF(O9>=1.5%,1,0) -> 0 | Q9: =PRODUCCION!S11 -> 0.006578406592 | R9: =IF(Q9>=1.5%,1,0) -> 0 | S9: =PRODUCCION!U11 -> 0.008921052632 | T9: =IF(S9>=1.5%,1,0) -> 0 | U9: =PRODUCCION!W11 -> 0.006930987591 | V9: =IF(U9>=1.5%,1,0) -> 0 | W9: =PRODUCCION!Y11 -> 0.4542442631 | X9: =IF(W9>=1.5%,1,0) -> 1 | Y9: =PRODUCCION!AA11 -> 0.01345681036 | Z9: =IF(Y9>=1.5%,1,0) -> 0
A10: SGC | B10: ESTADO DE ACCIONES CORRECTIVAS | C10: ='GESTION DE CALIDAD'!E7 -> 0 | D10: =IF(C10>=70%,1,0) -> 0 | E10: ='GESTION DE CALIDAD'!G7 -> 0 | F10: =IF(E10>=70%,1,0) -> 0 | G10: ='GESTION DE CALIDAD'!I7 -> 0 | H10: =IF(G10>=70%,1,0) -> 0 | I10: ='GESTION DE CALIDAD'!K7 -> 0 | J10: =IF(I10>=70%,1,0) -> 0 | K10: ='GESTION DE CALIDAD'!M7 -> 0 | L10: =IF(K10>=70%,1,0) -> 0 | M10: ='GESTION DE CALIDAD'!O7 -> 0 | N10: =IF(M10>=70%,1,0) -> 0 | O10: ='GESTION DE CALIDAD'!Q7 -> 0 | P10: =IF(O10>=70%,1,0) -> 0 | Q10: ='GESTION DE CALIDAD'!S7 -> 0 | R10: =IF(Q10>=70%,1,0) -> 0 | S10: ='GESTION DE CALIDAD'!U7 -> 0 | T10: =IF(S10>=70%,1,0) -> 0 | U10: ='GESTION DE CALIDAD'!W7 -> 0 | V10: =IF(U10>=70%,1,0) -> 0 | W10: ='GESTION DE CALIDAD'!Y7 -> 0 | X10: =IF(W10>=70%,1,0) -> 0 | Y10: ='GESTION DE CALIDAD'!AA7 -> 0.4583333333 | Z10: =IF(Y10>=70%,1,0) -> 0
B11: AUDITORIA INTERNA | C11: ='GESTION DE CALIDAD'!E9 -> 0 | D11: =IF(C11>=70%,1,0) -> 0 | E11: ='GESTION DE CALIDAD'!G9 -> % | F11: =IF(E11>=70%,1,0) -> 1 | G11: ='GESTION DE CALIDAD'!I9 -> 0 | H11: =IF(G11>=70%,1,0) -> 0 | I11: ='GESTION DE CALIDAD'!K9 -> 0 | J11: =IF(I11>=70%,1,0) -> 0 | K11: ='GESTION DE CALIDAD'!M9 -> 0 | L11: =IF(K11>=70%,1,0) -> 0 | M11: ='GESTION DE CALIDAD'!O9 -> 0 | N11: =IF(M11>=70%,1,0) -> 0 | O11: ='GESTION DE CALIDAD'!Q9 -> 0.3076923077 | P11: =IF(O11>=70%,1,0) -> 0 | Q11: ='GESTION DE CALIDAD'!S9 -> 0.1538461538 | R11: =IF(Q11>=70%,1,0) -> 0 | S11: ='GESTION DE CALIDAD'!U9 -> 0.09 | T11: =IF(S11>=70%,1,0) -> 0 | U11: ='GESTION DE CALIDAD'!W9 -> 0.2307692308 | V11: =IF(U11>=70%,1,0) -> 0 | W11: ='GESTION DE CALIDAD'!Y9 -> 0.2307692308 | X11: =IF(W11>=70%,1,0) -> 0 | Y11: ='GESTION DE CALIDAD'!AA9 -> 0 | Z11: =IF(Y11>=70%,1,0) -> 0 | AB11: =SUM(C11,E11,G11,I11,K11,M11,O11,Q11,S11,U11,W11,Y11) -> 1.013076923 | AC11: =IF(AB11>=70%,1,0) -> 1
A12: MANTENIMIENTO | B12: % DISPONIBILIDAD | C12: =MANTENIMIENTO!E7 -> 0.9156626506 | D12: =IF(C12<70%,"malo",IF(C12<79%,"regular",IF(C12<89%,"bueno",IF(C12<95%,"optimo",IF(C12>=95%,"fuera de rango"," "))))) -> optimo | E12: =MANTENIMIENTO!G7 -> 0.8677042802 | F12: =IF(E12<70%,"malo",IF(E12<79%,"regular",IF(E12<89%,"bueno",IF(E12<95%,"optimo",IF(E12>=95%,"fuera de rango"," "))))) -> bueno | G12: =MANTENIMIENTO!I7 -> 0.8871303623 | H12: =IF(G12<70%,"malo",IF(G12<79%,"regular",IF(G12<89%,"bueno",IF(G12<95%,"optimo",IF(G12>=95%,"fuera de rango"," "))))) -> bueno | I12: =MANTENIMIENTO!K7 -> 0.830371369 | J12: =IF(I12<70%,"malo",IF(I12<79%,"regular",IF(I12<89%,"bueno",IF(I12<95%,"optimo",IF(I12>=95%,"fuera de rango"," "))))) -> bueno | K12: =MANTENIMIENTO!M7 -> 0.8962131837 | L12: =IF(K12<70%,"malo",IF(K12<79%,"regular",IF(K12<89%,"bueno",IF(K12<95%,"optimo",IF(K12>=95%,"fuera de rango"," "))))) -> optimo | M12: =MANTENIMIENTO!O7 -> 0.8392963626 | N12: =IF(M12<70%,"malo",IF(M12<79%,"regular",IF(M12<89%,"bueno",IF(M12<95%,"optimo",IF(M12>=95%,"fuera de rango"," "))))) -> bueno | O12: =MANTENIMIENTO!Q7 -> 0.8337227778 | P12: =IF(O12<70%,"malo",IF(O12<79%,"regular",IF(O12<89%,"bueno",IF(O12<95%,"optimo",IF(O12>=95%,"fuera de rango"," "))))) -> bueno | Q12: =MANTENIMIENTO!S7 -> 0.8046917621 | R12: =IF(Q12<70%,"malo",IF(Q12<79%,"regular",IF(Q12<89%,"bueno",IF(Q12<95%,"optimo",IF(Q12>=95%,"fuera de rango"," "))))) -> bueno | S12: =MANTENIMIENTO!U7 -> 0.8714481418 | T12: =IF(S12<70%,"malo",IF(S12<79%,"regular",IF(S12<89%,"bueno",IF(S12<95%,"optimo",IF(S12>=95%,"fuera de rango"," "))))) -> bueno | U12: =MANTENIMIENTO!W7 -> 0.7915602384 | V12: =IF(U12<70%,"malo",IF(U12<79%,"regular",IF(U12<89%,"bueno",IF(U12<95%,"optimo",IF(U12>=95%,"fuera de rango"," "))))) -> bueno | W12: =MANTENIMIENTO!Y7 -> 0.8225223309 | X12: =IF(W12<70%,"malo",IF(W12<79%,"regular",IF(W12<89%,"bueno",IF(W12<95%,"optimo",IF(W12>=95%,"fuera de rango"," "))))) -> bueno | Y12: =MANTENIMIENTO!AA7 -> 0.9031941032 | Z12: =IF(Y12<70%,"malo",IF(Y12<79%,"regular",IF(Y12<89%,"bueno",IF(Y12<95%,"optimo",IF(Y12>=95%,"fuera de rango"," "))))) -> optimo
A13: CONTROL INTERNO | B13: AUDITORIA INTERNA | C13: ='CONTROL INTERNO'!E7 -> 0 | D13: =IF(C13>=80%,1,0) -> 0 | E13: ='CONTROL INTERNO'!G7 -> 0 | F13: =IF(E13>=80%,1,0) -> 0 | G13: ='CONTROL INTERNO'!I7 -> 0 | H13: =IF(G13>=80%,1,0) -> 0 | I13: ='CONTROL INTERNO'!K7 -> 0 | J13: =IF(I13>=80%,1,0) -> 0 | K13: ='CONTROL INTERNO'!M7 -> 0 | L13: =IF(K13>=80%,1,0) -> 0 | M13: ='CONTROL INTERNO'!O7 -> 0 | N13: =IF(M13>=80%,1,0) -> 0 | O13: ='CONTROL INTERNO'!Q7 -> 0.3076923077 | P13: =IF(O13>=80%,1,0) -> 0 | Q13: ='CONTROL INTERNO'!S7 -> 0.1538461538 | R13: =IF(Q13>=80%,1,0) -> 0 | S13: ='CONTROL INTERNO'!U7 -> 0.07692307692 | T13: =IF(S13>=80%,1,0) -> 0 | U13: ='CONTROL INTERNO'!W7 -> 0.2307692308 | V13: =IF(U13>=80%,1,0) -> 0 | W13: ='CONTROL INTERNO'!Y7 -> 0.2307692308 | X13: =IF(W13>=80%,1,0) -> 0 | Y13: ='CONTROL INTERNO'!AA7 -> 1 | Z13: =IF(Y13>=80%,1,0) -> 1
A14: ADMINISTRATIVA | B14: ALMACENAMIENTO DE CLIENTES | C14: =ADMINISTRATIVA!E7 -> 0.1733522222 | D14: =IF(C14<=33%,1,0) -> 1 | E14: =ADMINISTRATIVA!G7 -> 0.10806 | F14: =IF(E14<=33%,1,0) -> 1 | G14: =ADMINISTRATIVA!I7 -> 0.07816666667 | H14: =IF(G14<=33%,1,0) -> 1 | I14: =ADMINISTRATIVA!K7 -> 0.05670666667 | J14: =IF(I14<=33%,1,0) -> 1 | K14: =ADMINISTRATIVA!M7 -> 0.05544 | L14: =IF(K14<=33%,1,0) -> 1 | M14: =ADMINISTRATIVA!O7 -> 0.04128 | N14: =IF(M14<=33%,1,0) -> 1 | O14: =ADMINISTRATIVA!Q7 -> 0.02606 | P14: =IF(O14<=33%,1,0) -> 1 | Q14: =ADMINISTRATIVA!S7 -> 0.01058 | R14: =IF(Q14<=33%,1,0) -> 1 | S14: =ADMINISTRATIVA!U7 -> 0.02494666667 | T14: =IF(S14<=33%,1,0) -> 1 | U14: =ADMINISTRATIVA!W7 -> 0.006333333333 | V14: =IF(U14<=33%,1,0) -> 1 | W14: =ADMINISTRATIVA!Y7 -> 0.01289333333 | X14: =IF(W14<=33%,1,0) -> 1 | Y14: =ADMINISTRATIVA!AA7 -> 0.02066 | Z14: =IF(Y14<=33%,1,0) -> 1
B15: SGSST | C15: =ADMINISTRATIVA!E9 -> 1 | D15: =IF(C15=100%,1,0) -> 1 | E15: =ADMINISTRATIVA!G9 -> 1 | F15: =IF(E15=100%,1,0) -> 1 | G15: =ADMINISTRATIVA!I9 -> 1 | H15: =IF(G15=100%,1,0) -> 1 | I15: =ADMINISTRATIVA!K9 -> 1 | J15: =IF(I15=100%,1,0) -> 1 | K15: =ADMINISTRATIVA!M9 -> 1 | L15: =IF(K15=100%,1,0) -> 1 | M15: =ADMINISTRATIVA!O9 -> 1 | N15: =IF(M15=100%,1,0) -> 1 | O15: =ADMINISTRATIVA!Q9 -> 1 | P15: =IF(O15=100%,1,0) -> 1 | Q15: =ADMINISTRATIVA!S9 -> 1 | R15: =IF(Q15=100%,1,0) -> 1 | S15: =ADMINISTRATIVA!U9 -> 0.9 | T15: =IF(S15=100%,1,0) -> 0 | U15: =ADMINISTRATIVA!W9 -> 0.9 | V15: =IF(U15=100%,1,0) -> 0 | W15: =ADMINISTRATIVA!Y9 -> 1 | X15: =IF(W15=100%,1,0) -> 1 | Y15: =ADMINISTRATIVA!AA9 -> 0.875 | Z15: =IF(Y15=100%,1,0) -> 0
A16: TECNOLOGIA DE LA INFORMACION Y LA COMUNICACIÓN | B16: SOPORTE | C16: ='GESTIÓN TECNOLOGICA'!E7 -> 1 | D16: =IF(C16>=100%,1,0) -> 1 | E16: ='GESTIÓN TECNOLOGICA'!G7 -> 1 | F16: =IF(E16>=100%,1,0) -> 1 | G16: ='GESTIÓN TECNOLOGICA'!I7 -> 1 | H16: =IF(G16>=100%,1,0) -> 1 | I16: ='GESTIÓN TECNOLOGICA'!K7 -> 1 | J16: =IF(I16>=100%,1,0) -> 1 | K16: ='GESTIÓN TECNOLOGICA'!M7 -> 1 | L16: =IF(K16<=100%,1,0) -> 1 | M16: ='GESTIÓN TECNOLOGICA'!O7 -> 1 | N16: =IF(M16>=100%,1,0) -> 1 | O16: ='GESTIÓN TECNOLOGICA'!Q7 -> 1 | P16: =IF(O16>=100%,1,0) -> 1 | Q16: ='GESTIÓN TECNOLOGICA'!S7 -> 1 | R16: =IF(Q16>=100%,1,0) -> 1 | S16: ='GESTIÓN TECNOLOGICA'!U7 -> 1 | T16: =IF(S16>=100%,1,0) -> 1 | U16: ='GESTIÓN TECNOLOGICA'!W7 -> 1 | V16: =IF(U16>=100%,1,0) -> 1 | W16: ='GESTIÓN TECNOLOGICA'!Y7 -> 1 | X16: =IF(W16>=100%,1,0) -> 1 | Y16: ='GESTIÓN TECNOLOGICA'!AA7 -> 1 | Z16: =IF(Y16>=100%,1,0) -> 1
A17: COMERCIALIZACION | B17: VENTAS | C17: =COMERCIALIZACIÓN!E7 -> 0 | D17: =IF(C17>=40%,1,0) -> 0 | E17: =COMERCIALIZACIÓN!G7 -> 0.01613305556 | F17: =IF(E17>=40%,1,0) -> 0 | G17: =COMERCIALIZACIÓN!I7 -> 0.05020388889 | H17: =IF(G17>=40%,1,0) -> 0 | I17: =COMERCIALIZACIÓN!K7 -> 0.07227472222 | J17: =IF(I17>=40%,1,0) -> 0 | K17: =COMERCIALIZACIÓN!M7 -> 0.04708916667 | L17: =IF(K17>=40%,1,0) -> 0 | M17: =COMERCIALIZACIÓN!O7 -> 0.1168211111 | N17: =IF(M17>=100%,1,0) -> 0 | O17: =COMERCIALIZACIÓN!Q7 -> 0.06695416667 | P17: =IF(O17>=100%,1,0) -> 0 | Q17: =COMERCIALIZACIÓN!S7 -> 0.1079238889 | R17: =IF(Q17>=100%,1,0) -> 0 | S17: =COMERCIALIZACIÓN!U7 -> 0.09374615385 | T17: =IF(S17>=100%,1,0) -> 0 | U17: =COMERCIALIZACIÓN!W7 -> 0.09265692308 | V17: =IF(U17>=100%,1,0) -> 0 | W17: =COMERCIALIZACIÓN!Y7 -> 0.09285384615 | X17: =IF(W17>=100%,1,0) -> 0 | Y17: =COMERCIALIZACIÓN!AA7 -> 0.1400097436 | Z17: =IF(Y17>=100%,1,0) -> 0 | AB17: =COMERCIALIZACIÓN!AB7 -> 0.8599435897 | AC17: =IF(AB17>=100%,1,0) -> 0
A18: JURIDICA | B18: CONTRATOS OPORTUNOS | C18: =JURIDICA!E7 -> 1 | D18: =IF(C18>=100%,1,0) -> 1 | E18: =JURIDICA!G7 -> 1 | F18: =IF(E18>=100%,1,0) -> 1 | G18: =JURIDICA!I7 -> 1 | H18: =IF(G18>=100%,1,0) -> 1 | I18: =JURIDICA!K7 -> 1 | J18: =IF(I18>=100%,1,0) -> 1 | K18: =JURIDICA!M7 -> 1 | L18: =IF(K18>=100%,1,0) -> 1 | M18: =JURIDICA!O7 -> 1 | N18: =IF(M18>=100%,1,0) -> 1 | O18: =JURIDICA!Q7 -> 1 | P18: =IF(O18>=100%,1,0) -> 1 | Q18: =JURIDICA!S7 -> 1 | R18: =IF(Q18>=100%,1,0) -> 1 | S18: =JURIDICA!U7 -> 1 | T18: =IF(S18>=100%,1,0) -> 1 | U18: =JURIDICA!W7 -> 1 | V18: =IF(U18>=100%,1,0) -> 1 | W18: =JURIDICA!Y7 -> 1 | X18: =IF(W18>=100%,1,0) -> 1 | Y18: =JURIDICA!AA7 -> 1 | Z18: =IF(Y18>=100%,1,0) -> 1
A19: FINANCIERA | B19: MARGEN OPERACIONAL | C19: =FINANCIERA!E7 -> -54.00185987 | D19: =IF(C19>=17%,1,0) -> 0 | E19: =FINANCIERA!G7 -> -2.381130009 | F19: =IF(E19>=17%,1,0) -> 0 | G19: =FINANCIERA!I7 -> -0.3574888363 | H19: =IF(G19>=17%,1,0) -> 0 | I19: =FINANCIERA!K7 -> 0.01566275451 | J19: =IF(I19>=17%,1,0) -> 0 | K19: =FINANCIERA!M7 -> 0.0463454445 | L19: =IF(K19>=17%,1,0) -> 0 | M19: =FINANCIERA!O7 -> 0.1635987193 | N19: =IF(M19>=17%,1,0) -> 0 | O19: =FINANCIERA!Q7 -> 0.194662074 | P19: =IF(O19>=17%,1,0) -> 1 | Q19: =FINANCIERA!S7 -> 0.2453550023 | R19: =IF(Q19>=17%,1,0) -> 1 | S19: =FINANCIERA!U7 -> 0.3039935671 | T19: =IF(S19>=17%,1,0) -> 1 | U19: =FINANCIERA!W7 -> 0.2497805153 | V19: =IF(U19>=17%,1,0) -> 1 | W19: =FINANCIERA!Y7 -> 0.2973243722 | X19: =IF(W19>=17%,1,0) -> 1 | Y19: =FINANCIERA!AA7 -> 0.3226927617 | Z19: =IF(Y19>=17%,1,0) -> 1
A20: CONTROL DE CALIDAD | B20: RECLAMOS ATENDIDOS | C20: ='CONTROL DE CALIDAD'!E7 -> 1 | D20: =IF(C20=100%,1,0) -> 1 | E20: ='CONTROL DE CALIDAD'!G7 -> 1 | F20: =IF(E20=100%,1,0) -> 1 | G20: ='CONTROL DE CALIDAD'!I7 -> 1 | H20: =IF(G20=100%,1,0) -> 1 | I20: ='CONTROL DE CALIDAD'!K7 -> 1 | J20: =IF(I20=100%,1,0) -> 1 | K20: ='CONTROL DE CALIDAD'!M7 -> 0 | L20: =IF(K20=100%,1,0) -> 0 | M20: ='CONTROL DE CALIDAD'!O7 -> 1 | N20: =IF(M20=100%,1,0) -> 1 | O20: ='CONTROL DE CALIDAD'!Q7 -> 1 | P20: =IF(O20=100%,1,0) -> 1 | Q20: ='CONTROL DE CALIDAD'!S7 -> 1 | R20: =IF(Q20=100%,1,0) -> 1 | S20: ='CONTROL DE CALIDAD'!U7 -> 1 | T20: =IF(S20=100%,1,0) -> 1 | U20: ='CONTROL DE CALIDAD'!W7 -> 0 | V20: =IF(U20=100%,1,0) -> 0 | W20: ='CONTROL DE CALIDAD'!Y7 -> 0 | X20: =IF(W20=100%,1,0) -> 0 | Y20: ='CONTROL DE CALIDAD'!AA7 -> 0 | Z20: =IF(Y20=100%,1,0) -> 0
B21: PRODUCTOS NO CONFORMES | C21: ='CONTROL DE CALIDAD'!E10 -> 0.02394795127 | D21: =IF(C21<=3%,1,0) -> 1 | E21: ='CONTROL DE CALIDAD'!G10 -> 0.001031939369 | F21: =IF(E21<=3%,1,0) -> 1 | G21: ='CONTROL DE CALIDAD'!I10 -> 0.003558901093 | H21: =IF(G21<=3%,1,0) -> 1 | I21: ='CONTROL DE CALIDAD'!K10 -> 0.00250454709 | J21: =IF(I21<=3%,1,0) -> 1 | K21: ='CONTROL DE CALIDAD'!M10 -> 0.002207372221 | L21: =IF(K21<=3%,1,0) -> 1 | M21: ='CONTROL DE CALIDAD'!O10 -> 0.00357562071 | N21: =IF(M21<=3%,1,0) -> 1 | O21: ='CONTROL DE CALIDAD'!Q10 -> 0.003343926044 | P21: =IF(O21<=3%,1,0) -> 1 | Q21: ='CONTROL DE CALIDAD'!S10 -> 0.006613017823 | R21: =IF(Q21<=3%,1,0) -> 1 | S21: ='CONTROL DE CALIDAD'!U10 -> 0.01510047281 | T21: =IF(S21<=3%,1,0) -> 1 | U21: ='CONTROL DE CALIDAD'!W10 -> 0 | V21: =IF(U21<=3%,1,0) -> 1 | W21: ='CONTROL DE CALIDAD'!Y10 -> 0 | X21: =IF(W21<=3%,1,0) -> 1 | Y21: ='CONTROL DE CALIDAD'!AA10 -> 0 | Z21: =IF(Y21<=3%,1,0) -> 1
A23: BIMESTRAL
A24: PROCESOS | B24: INDICADOR | C24: 1 BIMESTRE | D24: META | E24: 2 BIMESTRE | F24: META | G24: 3 BIMESTRE | H24: META | I24: 4 BIMESTRE | J24: META | K24: 5 BIMESTRE | L24: META | M24: 6 BIMESTRE | N24: META
A25: CONTROL INTERNO | B25: ENTES EXTERNOS | C25: ='CONTROL INTERNO'!E11 -> 1 | D25: =IF(C25=100%,1,0) -> 1 | E25: ='CONTROL INTERNO'!G11 -> 1 | F25: =IF(E25=100%,1,0) -> 1 | G25: ='CONTROL INTERNO'!I11 -> 1 | H25: =IF(G25=100%,1,0) -> 1 | I25: ='CONTROL INTERNO'!K11 -> 1 | J25: =IF(I25=100%,1,0) -> 1 | K25: ='CONTROL INTERNO'!M15 -> 1 | L25: =IF(K25=100%,1,0) -> 1 | M25: ='CONTROL INTERNO'!O15 -> 1 | N25: =IF(M25=100%,1,0) -> 1
B26: ENTES EXTERNOS | C26: ='CONTROL INTERNO'!E12 -> 0 | D26: =IF(C26=100%,1,0) -> 0 | E26: ='CONTROL INTERNO'!G12 -> 0 | F26: =IF(E26=100%,1,0) -> 0 | G26: ='CONTROL INTERNO'!I12 -> 0 | H26: =IF(G26=100%,1,0) -> 0 | I26: ='CONTROL INTERNO'!K12 -> 0 | J26: =IF(I26=100%,1,0) -> 0 | K26: ='CONTROL INTERNO'!M16 -> 0 | L26: =IF(K26=100%,1,0) -> 0 | M26: ='CONTROL INTERNO'!O16 -> 0 | N26: =IF(M26=100%,1,0) -> 0
B27: SIA | C27: ='CONTROL INTERNO'!E15 -> 1 | D27: 1 | E27: ='CONTROL INTERNO'!G15 -> 1 | F27: 1 | G27: ='CONTROL INTERNO'!I15 -> 1 | H27: 1 | I27: ='CONTROL INTERNO'!K15 -> 1 | J27: 1 | K27: ='CONTROL INTERNO'!M15 -> 1 | L27: 1 | M27: ='CONTROL INTERNO'!O15 -> 1 | N27: 1
A29: SEMESTRAL | G29: ANUAL
A30: PROCESOS | B30: INDICADOR | C30: 1 SEMESTRE | D30: META | E30: 2 SEMESTRE | F30: META | G30: AÑO | H30: META
A31: ADMINISTRATIVA | B31: CAPACITACION | C31: =ADMINISTRATIVA!N11 -> 0.1666666667 | D31: =IF(C31>=50%,1,0) -> 0 | E31: =ADMINISTRATIVA!Z11 -> 0 | F31: =IF(E31>=50%,1,0) -> 0 | G31: =IF(SUM(C31,E31)>=100%,100%,SUM(C31,E31)) -> 0.1666666667 | H31: =IF(G31=100%,1,0) -> 0
A32: PLANEACIÓN | B32: PROYECTOS | C32: =PLANEACION!E7 -> 1 | D32: =IF(C32>=90%,1,0) -> 1 | E32: =PLANEACION!G7 -> 1 | F32: =IF(E32>=90%,1,0) -> 1 | G32: =AVERAGE(C32,E32) -> 1 | H32: =IF(G32>=90%,1,0) -> 1
B33: FORMULACION PLAN ESTRATEGICO 2019-2022 | C33: =PLANEACION!E9 -> 1 | D33: =IF(C33>=50%,1,0) -> 1 | E33: =PLANEACION!G9 -> 1 | F33: =IF(E33>=50%,1,0) -> 1 | G33: =IF(SUM(C33,E33)>=100%,100%,SUM(C33,E33)) -> 1 | H33: =IF(G33=100%,1,0) -> 1
